bitfinex/quotes_BTCUSD_20230114
["timestamp","ask_amount","ask_price","bid_price","bid_amount"]
[1673672788615,2.46441788,20888.0,20887.0,0.02033568]
[1673672788863,2.80011487,20888.0,20887.0,0.02033568]
[1673672789106,2.8001069,20888.0,20887.0,0.01931128]
[1673672789357,2.8001069,20888.0,20887.0,0.01912128]
[1673672789589,2.44716657,20888.0,20887.0,0.01912128]
[1673672789828,2.80709343,20888.0,20887.0,0.01912128]
[1673672790093,2.78434763,20888.0,20887.0,0.01912128]
[1673672791570,2.90367853,20888.0,20887.0,0.01912128]
[1673672793539,2.78440763,20888.0,20887.0,0.01912128]
[1673672793803,2.94223977,20888.0,20887.0,0.01912128]
[1673672794063,2.37917774,20888.0,20887.0,0.01912128]
[1673672795303,2.23769276,20888.0,20887.0,0.01912128]
[1673672795560,2.33769276,20888.0,20887.0,0.01912128]
[1673672797557,1.14776802,20888.0,20887.0,0.01912128]
[1673672797822,0.011,20888.0,20887.0,0.01912128]
[1673672798075,0.011,20888.0,20887.0,0.46732228]
[1673672798076,0.0001,20888.0,20887.0,0.46732228]
[1673672798321,6e-05,20889.0,20888.0,0.1]
[1673672798563,6e-05,20889.0,20888.0,0.135159]
[1673672799059,6e-05,20889.0,20888.0,0.13524205]
[1673672799303,0.00406,20889.0,20888.0,0.16524205]
[1673672801331,0.00406,20889.0,20888.0,0.06524205]
[1673672801816,0.00406,20889.0,20888.0,0.29314205]
[1673672802084,0.00406,20889.0,20888.0,0.77188505]
[1673672802573,6e-05,20889.0,20888.0,1.34188505]
[1673672802805,6e-05,20889.0,20888.0,0.86688505]
[1673672803056,6e-05,20889.0,20888.0,1.34188505]
[1673672803552,6e-05,20889.0,20888.0,0.79388505]
[1673672804289,6e-05,20889.0,20888.0,0.78910059]
[1673672804539,6e-05,20889.0,20888.0,0.18237454]
[1673672804785,6e-05,20889.0,20888.0,0.14721554]
[1673672805082,6e-05,20889.0,20888.0,0.25421554]
[1673672805083,0.00706,20889.0,20888.0,0.25421554]
[1673672805809,0.00706,20889.0,20888.0,0.107]
[1673672806051,0.00706,20889.0,20888.0,0.428001]
[1673672806283,0.00706,20889.0,20888.0,0.555901]
[1673672806519,0.00706,20889.0,20888.0,0.655901]
[1673672806999,0.00706,20889.0,20888.0,1.134644]
[1673672808700,0.00706,20889.0,20888.0,1.31419559]
[1673672808937,0.00706,20889.0,20888.0,0.83545259]
[1673672809183,0.00706,20889.0,20888.0,0.655901]
[1673672809905,0.478635,20893.0,20889.0,0.1]
[1673672809906,0.43166414,20893.0,20889.0,0.1]
[1673672810157,0.5993739,20894.0,20890.0,0.03528711]
[1673672810398,1.0780009,20894.0,20889.0,0.38641069]
[1673672810647,0.47720169,20890.0,20886.0,0.14301005]
[1673672810897,0.47720169,20890.0,20881.0,0.01634375]
[1673672810898,0.07191,20887.0,20881.0,0.01634375]
[1673672811144,2.49770066,20886.0,20881.0,0.01634375]
[1673672811434,2.49770066,20886.0,20875.0,0.84744847]
[1673672811435,3.39608471,20870.0,20864.0,0.47137333]
[1673672811695,3.39608471,20870.0,20862.0,1.25152405]
[1673672811696,3.39608471,20870.0,20863.0,0.2740456]
[1673672811957,3.39608471,20870.0,20863.0,0.18093968]
[1673672811958,0.1267,20865.0,20863.0,0.18093968]
[1673672812200,0.78728169,20868.0,20860.0,0.00101]
[1673672812201,1.43578969,20864.0,20860.0,0.00101]
[1673672812444,1.43578969,20864.0,20859.0,0.02067674]
[1673672812445,0.4791429,20864.0,20859.0,0.02067674]
[1673672812725,0.1,20869.0,20863.0,0.001]
[1673672812974,0.1,20869.0,20864.0,0.19072595]
[1673672813218,0.1,20869.0,20865.0,0.31862595]
[1673672813219,0.1,20867.0,20865.0,0.31862595]
[1673672813463,0.1,20867.0,20865.0,0.1279]
[1673672813709,0.38064957,20869.0,20866.0,0.321001]
[1673672813962,3.39608471,20870.0,20867.0,0.035579]
[1673672814202,3.39608471,20870.0,20867.0,0.19072595]
[1673672814446,3.39608471,20870.0,20868.0,0.00042547]
[1673672814688,0.007,20869.0,20866.0,0.0334302]
[1673672814946,1.87281293,20870.0,20867.0,0.31772595]
[1673672815197,0.014,20870.0,20868.0,1.49602695]
[1673672815446,1.25154362,20879.0,20869.0,0.135538]
[1673672815447,1.09396738,20879.0,20869.0,0.135538]
[1673672815696,1.09396738,20879.0,20870.0,0.51169395]
[1673672815943,0.0002,20871.0,20870.0,0.0334302]
[1673672816191,0.0002,20871.0,20870.0,0.321001]
[1673672816439,0.0002,20871.0,20868.0,0.1578153]
[1673672816687,0.0002,20871.0,20869.0,0.121]
[1673672816929,0.2272,20876.0,20869.0,0.121]
[1673672817200,0.60510169,20875.0,20869.0,0.31172595]
[1673672817446,0.12808,20873.0,20869.0,0.19072595]
[1673672817691,0.07305,20871.0,20870.0,0.122]
[1673672817940,0.1,20870.0,20868.0,0.18620804]
[1673672818204,0.1,20870.0,20869.0,0.008]
[1673672818450,0.1,20870.0,20868.0,0.18620804]
[1673672818690,0.1,20872.0,20869.0,0.008]
[1673672818936,0.12808,20873.0,20870.0,0.15434729]
[1673672819188,0.00018,20873.0,20870.0,0.34507324]
[1673672819453,0.17841151,20873.0,20870.0,0.34507324]
[1673672819699,0.18690799,20872.0,20870.0,0.15434729]
[1673672819948,0.179213,20871.0,20870.0,0.15434729]
[1673672820204,0.179213,20871.0,20867.0,0.15443093]
[1673672820446,0.18813561,20872.0,20867.0,0.15443093]
[1673672820447,0.669404,20873.0,20870.0,0.01]
[1673672820696,0.1,20872.0,20867.0,0.15443093]
[1673672820944,0.179213,20871.0,20870.0,0.01]
[1673672821188,0.179213,20871.0,20867.0,0.15462093]
[1673672821468,0.003,20871.0,20867.0,0.19962093]
[1673672821716,0.482146,20871.0,20867.0,0.15462093]
[1673672821979,0.44329672,20870.0,20867.0,0.00019]
[1673672822223,0.26408372,20870.0,20867.0,0.16124439]
[1673672822518,0.16408372,20870.0,20867.0,0.20624439]
[1673672822802,0.16408372,20870.0,20868.0,0.18821591]
[1673672823082,0.003,20871.0,20869.0,0.19072595]
[1673672823326,0.83080332,20876.0,20870.0,0.321001]
[1673672823584,0.83080332,20876.0,20868.0,0.1285]
[1673672823585,0.83080332,20876.0,20871.0,0.19072595]
[1673672823853,0.71673495,20876.0,20872.0,0.19072595]
[1673672824111,0.1,20875.0,20872.0,0.19072595]
[1673672824381,0.47903,20876.0,20873.0,0.19072595]
[1673672824639,0.47903,20876.0,20874.0,0.19872683]
[1673672824640,0.041,20876.0,20874.0,0.19872683]
[1673672824891,0.479007,20877.0,20874.0,0.19872683]
[1673672825353,0.00018,20878.0,20875.0,0.19072595]
[1673672825361,0.00018,20878.0,20874.0,0.31922595]
[1673672825842,0.00018,20878.0,20876.0,0.1]
[1673672826102,0.00018,20878.0,20877.0,0.035395]
[1673672826353,0.00018,20878.0,20877.0,0.321001]
[1673672826621,0.00018,20878.0,20877.0,0.64022695]
[1673672826855,0.041,20878.0,20877.0,0.578001]
[1673672827100,1.09396738,20879.0,20877.0,0.321001]
[1673672827394,1.09396738,20879.0,20878.0,0.035359]
[1673672827639,1.09396738,20879.0,20878.0,0.20042902]
[1673672827891,1.09396738,20879.0,20878.0,0.16507002]
[1673672829135,1.09696738,20879.0,20878.0,0.48607102]
[1673672829375,1.09396738,20879.0,20878.0,0.48607102]
[1673672829642,1.13096738,20879.0,20878.0,0.48707102]
[1673672829881,1.13096738,20879.0,20878.0,0.64022695]
[1673672830122,1.13096738,20879.0,20878.0,0.449501]
[1673672830371,1.13096738,20879.0,20878.0,0.928474]
[1673672830625,1.13096738,20879.0,20878.0,1.028474]
[1673672830875,1.09396738,20879.0,20878.0,1.027474]
[1673672831119,1.09396738,20879.0,20878.0,0.63869397]
[1673672831120,1.09696738,20879.0,20878.0,0.63869397]
[1673672832151,1.09396738,20879.0,20878.0,0.49969397]
[1673672832395,1.09696738,20879.0,20878.0,0.49969397]
[1673672832876,1.09996738,20879.0,20878.0,0.63869397]
[1673672833147,1.09989129,20879.0,20878.0,0.63869397]
[1673672833890,1.09989129,20879.0,20878.0,1.066474]
[1673672834147,1.09989129,20879.0,20878.0,1.194974]
[1673672834389,1.09989129,20879.0,20878.0,5.294974]
[1673672835375,1.09989129,20879.0,20878.0,5.29615314]
[1673672836548,1.09489129,20879.0,20878.0,5.29615314]
[1673672837048,1.09489129,20879.0,20878.0,5.33047489]
[1673672837538,0.91079341,20879.0,20878.0,5.33047489]
[1673672837814,0.90479341,20879.0,20878.0,5.19147489]
[1673672838066,0.72706211,20879.0,20878.0,6.45047658]
[1673672838311,0.72706211,20879.0,20878.0,5.11157489]
[1673672838556,0.72706211,20879.0,20878.0,5.04049496]
[1673672838831,0.72706211,20879.0,20878.0,0.90149496]
[1673672839087,0.72706211,20879.0,20878.0,1.04049496]
[1673672839335,0.72706211,20879.0,20878.0,0.848474]
[1673672839577,0.72706211,20879.0,20878.0,1.215974]
[1673672839834,0.72706211,20879.0,20878.0,3.215974]
[1673672840343,0.04903124,20880.0,20879.0,0.1]
[1673672840584,0.04903124,20880.0,20879.0,1.350239]
[1673672840833,0.04903124,20880.0,20879.0,1.221739]
[1673672841091,0.04903124,20880.0,20879.0,2.3891789]
[1673672841339,0.04903124,20880.0,20879.0,2.1606789]
[1673672841582,0.04903124,20880.0,20879.0,2.2996789]
[1673672842082,0.04903124,20880.0,20879.0,2.30085799]
[1673672842324,0.04903124,20880.0,20879.0,2.13341809]
[1673672842569,0.04903124,20880.0,20879.0,2.26191809]
[1673672843624,0.04903124,20880.0,20879.0,2.44978597]
[1673672843856,0.04903124,20880.0,20879.0,2.26191809]
[1673672844347,0.04903124,20880.0,20879.0,1.13341809]
[1673672844595,0.04903124,20880.0,20879.0,1.23341809]
[1673672845333,0.00018,20883.0,20879.0,1.23341809]
[1673672845579,0.00018,20883.0,20880.0,0.24097]
[1673672845818,0.00018,20883.0,20881.0,0.30480849]
[1673672846059,0.19227117,20885.0,20882.0,0.340946]
[1673672846311,0.19227117,20885.0,20883.0,0.035325]
[1673672846564,0.19227117,20885.0,20882.0,0.10013788]
[1673672846803,0.1617409,20884.0,20881.0,1.22728549]
[1673672847283,0.1617409,20884.0,20882.0,0.27640988]
[1673672847524,0.1617409,20884.0,20881.0,1.22728549]
[1673672847761,0.1617409,20884.0,20882.0,0.14]
[1673672848016,0.1617409,20884.0,20881.0,1.22728549]
[1673672848251,0.1617409,20884.0,20882.0,0.14]
[1673672848513,0.00537194,20886.0,20878.0,0.22779]
[1673672848756,0.1275,20883.0,20878.0,0.00019]
[1673672848998,1.085084,20882.0,20878.0,0.00019]
[1673672849240,0.259208,20881.0,20878.0,0.00019]
[1673672849483,0.259208,20880.0,20878.0,0.00019]
[1673672849740,0.478943,20880.0,20876.0,0.14112166]
[1673672849985,0.1,20879.0,20876.0,0.14112166]
[1673672850248,1.217154,20878.0,20874.0,0.15253181]
[1673672850496,0.957946,20878.0,20875.0,0.14478296]
[1673672850758,0.7840635,20878.0,20875.0,0.14478296]
[1673672851022,0.259208,20877.0,20873.0,0.19445632]
[1673672851267,1.058019,20877.0,20876.0,0.005]
[1673672851509,1.058019,20877.0,20872.0,0.00019]
[1673672851510,1.445227,20877.0,20872.0,0.00019]
[1673672851754,0.67095494,20876.0,20875.0,0.015]
[1673672852001,0.67095494,20876.0,20872.0,0.00019]
[1673672852002,0.387708,20876.0,20872.0,0.00019]
[1673672852242,0.387708,20876.0,20873.0,0.043]
[1673672852243,0.1279,20874.0,20873.0,0.043]
[1673672852498,0.1279,20874.0,20872.0,0.00019]
[1673672852499,2.36424694,20874.0,20872.0,0.00019]
[1673672852746,0.1,20873.0,20872.0,0.00019]
[1673672852981,0.966795,20873.0,20872.0,0.00019]
[1673672853225,0.866795,20873.0,20872.0,0.11099853]
[1673672853455,0.866795,20873.0,20872.0,0.14999853]
[1673672853738,0.866795,20873.0,20872.0,0.11099853]
[1673672853983,1.003795,20873.0,20872.0,0.004]
[1673672854226,0.738295,20873.0,20871.0,0.0171196]
[1673672854475,0.738295,20873.0,20872.0,0.004]
[1673672854476,0.616087,20873.0,20872.0,0.004]
[1673672854725,0.479087,20873.0,20871.0,0.0171196]
[1673672854937,0.137,20873.0,20872.0,0.17415963]
[1673672855221,0.18722498,20876.0,20872.0,0.17015963]
[1673672855465,0.18722498,20876.0,20872.0,0.36088558]
[1673672855711,0.16335433,20875.0,20872.0,0.36088558]
[1673672855953,0.16335433,20875.0,20872.0,0.17015963]
[1673672856694,0.00018,20876.0,20872.0,0.17015963]
[1673672856695,0.12872189,20873.0,20872.0,0.84498858]
[1673672856937,0.00018,20876.0,20874.0,0.1285]
[1673672857182,0.117,20875.0,20874.0,0.79728195]
[1673672857429,0.117,20875.0,20874.0,1.36202]
[1673672857951,1.17783392,20879.0,20874.0,1.36202]
[1673672858200,1.17783392,20879.0,20875.0,0.19072595]
[1673672858201,0.012,20876.0,20875.0,0.19072595]
[1673672858444,1.17783392,20879.0,20875.0,0.755409]
[1673672858685,1.17783392,20879.0,20876.0,0.276368]
[1673672858923,0.19943392,20879.0,20875.0,0.958046]
[1673672859192,0.00018,20879.0,20876.0,0.479013]
[1673672859688,0.165759,20879.0,20876.0,0.479013]
[1673672859937,0.19105748,20878.0,20876.0,0.002]
[1673672860181,0.19105748,20878.0,20874.0,0.1997246]
[1673672860182,0.259208,20877.0,20874.0,0.1997246]
[1673672860417,0.19105748,20878.0,20876.0,0.007]
[1673672860672,0.19105748,20878.0,20875.0,0.17991852]
[1673672860874,0.19105748,20878.0,20876.0,0.006]
[1673672861365,0.260208,20877.0,20876.0,0.006]
[1673672861636,0.001,20877.0,20876.0,0.006]
[1673672862102,0.14748484,20877.0,20875.0,0.17991852]
[1673672863083,0.26348484,20877.0,20876.0,0.007]
[1673672863311,0.259208,20877.0,20872.0,0.18955639]
[1673672863550,0.259208,20877.0,20875.0,0.007]
[1673672863551,0.48574694,20877.0,20875.0,0.007]
[1673672863786,0.259208,20876.0,20872.0,0.18955639]
[1673672864030,0.1,20876.0,20872.0,0.18955639]
[1673672864751,1.073995,20877.0,20872.0,0.18955639]
[1673672864752,0.15081893,20875.0,20872.0,0.18955639]
[1673672865799,0.15081893,20875.0,20872.0,0.25555639]
[1673672866047,0.15081893,20875.0,20872.0,0.18955639]
[1673672866281,0.16281893,20875.0,20872.0,0.25555639]
[1673672867241,0.16281893,20875.0,20872.0,0.066]
[1673672867485,0.1907338,20874.0,20872.0,0.066]
[1673672868481,0.1907338,20874.0,20871.0,0.18351269]
[1673672868717,0.2027338,20874.0,20872.0,0.066]
[1673672869447,0.2027338,20874.0,20872.0,0.06581951]
[1673672869940,0.259208,20873.0,20872.0,0.06581951]
[1673672870186,0.966795,20873.0,20872.0,0.06581951]
[1673672870430,1.02797649,20873.0,20872.0,0.06581951]
[1673672871158,1.02797649,20873.0,20871.0,0.0171196]
[1673672871388,0.89176849,20873.0,20872.0,0.006]
[1673672871624,1.02797649,20873.0,20871.0,0.0171196]
[1673672871866,0.76876849,20873.0,20871.0,0.0171196]
[1673672872127,0.76876849,20873.0,20872.0,0.006]
[1673672872128,0.730587,20873.0,20872.0,0.006]
[1673672872365,0.730587,20873.0,20871.0,0.0171196]
[1673672872366,0.866795,20873.0,20871.0,0.0171196]
[1673672872672,0.730587,20873.0,20871.0,0.0171196]
[1673672872898,0.54883301,20872.0,20871.0,0.0231196]
[1673672873229,0.92794301,20872.0,20871.0,0.0231196]
[1673672874138,0.92794301,20872.0,20871.0,0.0171196]
[1673672874381,1.05094301,20872.0,20871.0,0.0231196]
[1673672875879,0.382208,20872.0,20871.0,0.34769555]
[1673672876123,0.123,20872.0,20871.0,0.6361026]
[1673672876355,0.123,20872.0,20871.0,1.07551603]
[1673672876866,0.123,20872.0,20871.0,1.17551603]
[1673672877100,0.07947688,20876.0,20871.0,1.0065516]
[1673672877347,0.008,20872.0,20871.0,0.8275026]
[1673672877608,0.07947688,20876.0,20871.0,0.7575026]
[1673672877886,0.07947688,20876.0,20872.0,0.276436]
[1673672878139,0.07947688,20876.0,20871.0,0.6936526]
[1673672878379,0.07947688,20876.0,20872.0,0.19979937]
[1673672878631,0.07947688,20876.0,20871.0,0.0171196]
[1673672878632,0.607525,20876.0,20871.0,0.0171196]
[1673672878871,0.387708,20875.0,20872.0,0.001]
[1673672879121,0.1,20874.0,20872.0,0.001]
[1673672879365,0.259208,20873.0,20872.0,0.001]
[1673672879867,0.254208,20873.0,20871.0,0.0171196]
[1673672880110,0.579065,20874.0,20872.0,0.001]
[1673672880603,0.325255,20873.0,20872.0,0.002]
[1673672880889,0.804342,20873.0,20872.0,0.002]
[1673672881168,1.029842,20873.0,20871.0,0.0171196]
[1673672881411,0.775637,20873.0,20871.0,0.0171196]
[1673672881661,0.254205,20872.0,20871.0,0.0171196]
[1673672881908,0.833315,20872.0,20871.0,0.0171196]
[1673672883421,0.841315,20872.0,20871.0,0.0871196]
[1673672883656,0.88772392,20872.0,20871.0,0.0871196]
[1673672884638,0.88772392,20872.0,20869.0,0.18282322]
[1673672884639,0.741315,20872.0,20866.0,0.479228]
[1673672884891,0.17635139,20871.0,20867.0,0.18058464]
[1673672885869,0.17635139,20871.0,20866.0,0.479228]
[1673672885870,0.19356576,20871.0,20866.0,0.479228]
[1673672886114,0.19356576,20871.0,20866.0,0.85619531]
[1673672886351,0.20956576,20871.0,20867.0,0.30086119]
[1673672886593,0.19356576,20871.0,20867.0,0.39158714]
[1673672886843,0.20856576,20871.0,20867.0,0.39158714]
[1673672887093,0.19356576,20871.0,20867.0,0.20086119]
[1673672887340,0.20956576,20871.0,20867.0,0.20086119]
[1673672888403,0.18741183,20871.0,20865.0,0.78735312]
[1673672888648,0.18741183,20871.0,20865.0,0.97807907]
[1673672888893,0.49514,20871.0,20865.0,0.49882007]
[1673672889144,0.14339437,20870.0,20865.0,0.35693909]
[1673672889388,0.62255837,20870.0,20866.0,0.15953353]
[1673672889898,0.62255837,20870.0,20866.0,0.35025948]
[1673672890135,0.63655837,20870.0,20866.0,0.35025948]
[1673672890386,0.44424837,20870.0,20866.0,0.35025948]
[1673672890632,0.61998153,20870.0,20866.0,0.16553353]
[1673672890838,0.63398153,20870.0,20866.0,0.16553353]
[1673672891391,0.61998153,20870.0,20866.0,0.15953353]
[1673672891630,0.17946139,20869.0,20866.0,0.15953353]
[1673672891879,0.17946139,20869.0,20865.0,0.15988786]
[1673672892133,0.1,20868.0,20865.0,0.17177003]
[1673672892383,0.254205,20867.0,20865.0,0.17177003]
[1673672892634,0.65864439,20869.0,20866.0,0.001]
[1673672892635,0.70264439,20869.0,20866.0,0.001]
[1673672892878,0.65882439,20869.0,20866.0,0.19996241]
[1673672893131,0.262205,20868.0,20866.0,0.19996241]
[1673672893382,0.65882439,20869.0,20866.0,0.19996241]
[1673672893635,0.65882439,20869.0,20865.0,0.01800688]
[1673672893900,0.254205,20868.0,20865.0,0.199185]
[1673672894152,0.16675553,20867.0,20865.0,0.199185]
[1673672894399,0.16675553,20867.0,20866.0,0.001]
[1673672894648,0.044,20868.0,20866.0,0.1836973]
[1673672894903,0.044,20868.0,20867.0,0.19072595]
[1673672895144,0.58279955,20874.0,20867.0,0.95146495]
[1673672895145,0.479081,20874.0,20867.0,0.95146495]
[1673672895352,0.479081,20874.0,20868.0,0.61410493]
[1673672895353,0.007,20869.0,20868.0,0.61410493]
[1673672895650,0.675671,20876.0,20868.0,0.90255998]
[1673672895871,0.16761414,20873.0,20869.0,0.29072595]
[1673672896156,0.675671,20876.0,20869.0,1.24905895]
[1673672896408,0.19943863,20874.0,20870.0,0.19170012]
[1673672896654,0.479211,20876.0,20870.0,0.19170012]
[1673672896892,0.18621007,20875.0,20871.0,0.34157224]
[1673672897407,0.00718,20876.0,20872.0,0.19072595]
[1673672897652,0.00718,20876.0,20873.0,1.07979898]
[1673672897897,0.00718,20876.0,20873.0,0.79838298]
[1673672898156,0.00018,20876.0,20874.0,0.281397]
[1673672898428,0.06518,20876.0,20873.0,1.27744998]
[1673672898674,0.06518,20876.0,20874.0,0.760454]
[1673672898918,0.201,20876.0,20874.0,0.479058]
[1673672899161,0.60160775,20880.0,20875.0,0.381382]
[1673672899410,0.60160775,20880.0,20876.0,0.19072595]
[1673672899651,0.60160775,20880.0,20875.0,0.479036]
[1673672899652,0.76126507,20880.0,20877.0,0.1909949]
[1673672899892,0.76126507,20880.0,20877.0,0.19072595]
[1673672900151,0.19628487,20879.0,20875.0,0.66352666]
[1673672900418,0.00460775,20880.0,20876.0,0.479018]
[1673672900666,0.20264231,20880.0,20877.0,0.00026895]
[1673672900931,0.00460775,20880.0,20877.0,0.1909949]
[1673672901180,0.00460775,20880.0,20877.0,0.6699819]
[1673672901419,0.19057209,20880.0,20877.0,0.47925595]
[1673672901673,0.13060775,20880.0,20877.0,0.47925595]
[1673672901912,0.00460775,20880.0,20878.0,0.17471566]
[1673672902159,0.07660775,20880.0,20878.0,0.17471566]
[1673672902410,0.00460775,20880.0,20878.0,0.17471566]
[1673672902657,0.07660775,20880.0,20878.0,0.17471566]
[1673672902901,0.00460775,20880.0,20878.0,0.17471566]
[1673672903146,0.12960775,20880.0,20878.0,0.18071566]
[1673672903403,0.15064854,20881.0,20878.0,0.18071566]
[1673672903404,0.05625322,20881.0,20878.0,0.18071566]
[1673672903883,0.05625322,20881.0,20878.0,0.17471566]
[1673672904136,0.012,20880.0,20878.0,0.17671566]
[1673672904389,0.05625322,20881.0,20879.0,0.18676799]
[1673672904628,0.06825322,20881.0,20879.0,0.18676799]
[1673672905110,0.254205,20880.0,20879.0,0.18676799]
[1673672905358,0.05625322,20881.0,20879.0,0.18676799]
[1673672905626,0.06825322,20881.0,20879.0,0.19576799]
[1673672905881,0.254205,20880.0,20879.0,0.18676799]
[1673672906122,0.05625322,20881.0,20879.0,0.18676799]
[1673672906629,0.16984627,20879.0,20875.0,0.6305723]
[1673672907368,0.16984627,20879.0,20876.0,0.17630116]
[1673672907877,0.17084627,20879.0,20876.0,0.17630116]
[1673672908124,0.17084627,20879.0,20876.0,0.17587357]
[1673672908623,0.16984627,20879.0,20876.0,0.17587357]
[1673672908864,0.16984627,20879.0,20876.0,0.24287357]
[1673672910374,0.16984627,20879.0,20877.0,0.17078594]
[1673672910616,0.16984627,20879.0,20877.0,0.17131831]
[1673672910849,0.16984627,20879.0,20877.0,0.17078594]
[1673672911143,0.16984627,20879.0,20875.0,0.479039]
[1673672911395,0.16984627,20879.0,20874.0,0.65789663]
[1673672911396,0.254205,20878.0,20874.0,0.65789663]
[1673672911651,0.77985158,20879.0,20874.0,0.14639663]
[1673672911895,0.77985158,20879.0,20875.0,0.16600813]
[1673672912138,0.25472501,20878.0,20875.0,0.16600813]
[1673672912385,0.15472501,20878.0,20875.0,0.16600813]
[1673672913137,0.15472501,20878.0,20876.0,0.00053241]
[1673672913396,0.15472501,20878.0,20875.0,0.16600813]
[1673672914166,0.607455,20879.0,20875.0,0.16600813]
[1673672914418,0.607455,20879.0,20875.0,0.35673408]
[1673672914666,0.78431763,20879.0,20875.0,0.16600813]
[1673672914929,0.16830285,20878.0,20876.0,0.14325412]
[1673672915417,0.001,20878.0,20876.0,0.33451248]
[1673672915667,0.001,20878.0,20876.0,0.14378653]
[1673672915915,0.001,20878.0,20877.0,0.281351]
[1673672916425,0.02476317,20880.0,20876.0,0.62280253]
[1673672916915,0.02476317,20880.0,20876.0,0.81352848]
[1673672917160,0.02476317,20880.0,20876.0,0.62280253]
[1673672917401,0.02464317,20880.0,20876.0,0.62280253]
[1673672917667,0.02464317,20880.0,20877.0,0.18575108]
[1673672919422,0.15904198,20879.0,20877.0,0.18575108]
[1673672920212,0.15904198,20879.0,20877.0,0.18603321]
[1673672920453,0.15119672,20880.0,20877.0,0.18575108]
[1673672920659,0.002,20879.0,20877.0,0.18575108]
[1673672921204,0.1857515,20879.0,20877.0,0.18575108]
[1673672921690,0.1857515,20879.0,20877.0,0.18627093]
[1673672921938,0.1857515,20879.0,20875.0,0.47903]
[1673672922186,0.1857515,20879.0,20875.0,0.16936658]
[1673672922432,0.26020352,20878.0,20875.0,0.16936658]
[1673672922684,0.16020352,20878.0,20873.0,0.479087]
[1673672922922,0.16020352,20878.0,20874.0,0.15673519]
[1673672923170,0.16020352,20878.0,20875.0,0.0005199]
[1673672923669,0.16020352,20878.0,20875.0,0.16413211]
[1673672923914,0.16120352,20878.0,20875.0,0.16413211]
[1673672924160,0.16120352,20878.0,20875.0,0.16361221]
[1673672924397,0.16220352,20878.0,20875.0,0.30461221]
[1673672924892,0.002,20878.0,20875.0,0.141]
[1673672925138,0.1285,20877.0,20875.0,0.141]
[1673672925386,0.40875304,20877.0,20875.0,0.141]
[1673672925627,0.733223,20876.0,20875.0,0.141]
[1673672926183,0.733223,20876.0,20873.0,0.16116277]
[1673672926427,0.479018,20876.0,20870.0,0.71221194]
[1673672926676,0.479018,20876.0,20870.0,0.49578194]
[1673672926921,0.479018,20876.0,20875.0,0.141]
[1673672926922,0.708698,20876.0,20875.0,0.141]
[1673672927169,0.707698,20876.0,20871.0,0.17293481]
[1673672927412,0.254205,20875.0,20873.0,0.14]
[1673672927651,0.479055,20875.0,20872.0,0.16725013]
[1673672927930,0.42169686,20874.0,20872.0,0.16725013]
[1673672928182,0.16749186,20874.0,20872.0,0.16725013]
[1673672929209,0.18749186,20874.0,20872.0,0.17725013]
[1673672929462,0.0975466,20874.0,20872.0,0.17725013]
[1673672930218,0.0975466,20874.0,20873.0,0.00031439]
[1673672930471,0.10361413,20876.0,20873.0,0.22923982]
[1673672930717,0.10379413,20876.0,20873.0,0.41996577]
[1673672930950,0.10379413,20876.0,20873.0,0.35416577]
[1673672931215,0.00018,20876.0,20873.0,0.16343982]
[1673672931460,0.09805124,20876.0,20873.0,0.16312543]
[1673672931703,0.11600551,20875.0,20873.0,0.17312543]
[1673672932942,0.11600551,20875.0,20873.0,0.16312543]
[1673672933194,0.11600551,20875.0,20873.0,0.01]
[1673672933655,0.59505151,20875.0,20873.0,0.01]
[1673672933934,0.254205,20874.0,20873.0,0.01]
[1673672934440,0.59505151,20875.0,20873.0,0.01]
[1673672934885,0.59505151,20875.0,20871.0,0.1446874]
[1673672935165,0.59505151,20875.0,20873.0,0.01]
[1673672935426,0.59505151,20875.0,20871.0,0.1446874]
[1673672935681,0.11707909,20874.0,20873.0,0.01]
[1673672936203,0.11707909,20874.0,20873.0,0.0758]
[1673672936442,1.55698955,20877.0,20873.0,0.544887]
[1673672936443,0.09201976,20877.0,20873.0,0.544887]
[1673672936682,0.09201976,20877.0,20874.0,0.47212595]
[1673672936929,0.09201976,20877.0,20875.0,0.281382]
[1673672937168,0.09191976,20877.0,20874.0,0.66978995]
[1673672937422,0.09717056,20878.0,20874.0,0.479064]
[1673672937658,0.96264055,20880.0,20875.0,0.19072595]
[1673672937906,0.11210638,20880.0,20876.0,0.66973395]
[1673672938396,0.69897982,20881.0,20876.0,0.66973395]
[1673672938643,0.81253259,20881.0,20877.0,0.35817813]
[1673672939128,0.09875854,20880.0,20877.0,0.35817813]
[1673672939384,0.09875854,20880.0,20877.0,0.16745218]
[1673672939874,0.10771467,20881.0,20877.0,0.16745218]
[1673672940106,0.10771467,20881.0,20877.0,0.83716813]
[1673672940346,0.09117599,20880.0,20877.0,0.65744218]
[1673672940581,0.09117599,20880.0,20877.0,0.16745218]
[1673672940896,0.09117599,20880.0,20877.0,0.17445218]
[1673672941131,0.09117599,20880.0,20877.0,0.16745218]
[1673672941401,0.09117599,20880.0,20877.0,0.17445218]
[1673672942405,0.09117599,20880.0,20877.0,0.002724]
[1673672942406,0.1279,20878.0,20877.0,0.002724]
[1673672942900,0.861078,20878.0,20877.0,0.002724]
[1673672943147,0.382105,20878.0,20877.0,0.002724]
[1673672943886,0.382105,20878.0,20873.0,0.62096498]
[1673672943887,0.49836742,20878.0,20875.0,0.18216738]
[1673672944124,0.49836742,20878.0,20877.0,0.01]
[1673672944125,0.25276242,20878.0,20877.0,0.01]
[1673672944390,0.48468742,20878.0,20877.0,0.01]
[1673672944873,0.47668742,20878.0,20875.0,0.18216738]
[1673672945093,0.97393524,20878.0,20875.0,0.18316738]
[1673672945367,0.231925,20877.0,20875.0,0.18216738]
[1673672945619,0.88193524,20878.0,20877.0,0.01]
[1673672945862,1.21386024,20878.0,20877.0,0.01]
[1673672946606,1.09759782,20878.0,20877.0,0.01]
[1673672946844,1.2000001,20878.0,20873.0,0.18277219]
[1673672947094,0.24219982,20877.0,20875.0,0.001]
[1673672947348,0.231925,20876.0,20875.0,0.001]
[1673672947633,0.231925,20876.0,20873.0,0.18277219]
[1673672947877,0.72119682,20877.0,20873.0,0.18277219]
[1673672948138,0.72119682,20877.0,20873.0,0.18408241]
[1673672948381,0.231925,20876.0,20873.0,0.18408241]
[1673672948600,0.579024,20876.0,20873.0,0.18277219]
[1673672948890,0.479024,20876.0,20873.0,0.18277219]
[1673672949133,0.57385258,20876.0,20873.0,0.18277219]